[Event "SixDays Budapest March IM B 2025"]
[Site "Budapest"]
[Date "2025.03.25"]
[Round "2.1"]
[White "Chakrabarty, Reyaansh"]
[Black "Kolimar, Kristof Pal"]
[Result "0-1"]
[Annotator "TA"]
[ECO "C54"]
[WhiteElo "2181"]
[BlackElo "2284"]
[PlyCount "126"]
[EventDate "2025.03.23"]
[EventCountry "HUN"]
[SourceTitle "playchess.com"]
[Source "ChessBase"]
[SourceQuality "1"]
[TimeControl "5400+30"]

{[%evp 17,125,0,0,0,0,0,6,0,0,0,43,8,11,0,0,0,29,37,29,26,37,37,29,35,39,0,0,0,-14,-47,-52,-49,-47,-37,-41,-57,-3,-67,-22,-35,-36,-35,-30,-30,-30,-158,-37,-91,-23,-168,-154,-308,-258,-275,-244,-281,-268,-265,-266,-280,-256,-256,-256,-336,-337,-333,-335,-343,-334,-406,-349,-415,-543,-698,-395,-374,-383,-503,-485,-607,-599,-560,-445,-1081,-767,-1441,-1396,-1356,-1237,-29975,-666,-659,-639,-867,-838,-1525,-1346,-1731,-1801,-1175,-1040,-29982,-29983,-29986,-4710,-29997,-29998,-29998,-29999,-29999]} 1. e4 {[%emt 0:10:51]} e5 {[%emt 0:00:10]} 2. Nf3 {[%emt 0:00:06]} Nc6 {[%emt 0:00:04]} 3. Bc4 {[%emt 0:00:03]} Bc5 {[%emt 0:00:08]} 4. c3 {[%emt 0:00:01]} Nf6 {[%emt 0:00:08]} 5. d4 {[%emt 0:00:02]} exd4 {[%emt 0:00:09]} 6. e5 {[%emt 0:00:11]} d5 {[%emt 0:00:08]} 7. Bb5 {[%emt 0:00:04]} Ne4 {[%emt 0:00:21]} 8. cxd4 {[%emt 0:00:06]} Bb6 {[%emt 0:00:09]} 9. Nc3 {[%emt 0:00:07]} O-O {[%emt 0:00:18][%cal Oc6d4]} 10. Be3 {[%emt 0:00:03] C54: Giuoco Piano: 4 c3 Nf6, main lines with 5 d4 and 5 d3.} Bg4 {[%emt 0:00:14]} 11. h3 {[%emt 0:00:12]} Bh5 {[%emt 0:00:29]} 12. Qc2 {[%emt 0:00:46] The position is equal.} Nxc3 {[%emt 0:06:49]} 13. bxc3 {[%emt 0:00:07] A sharp opening} Qe7 $146 {[%emt 0:08:59]} (13... f6 14. Bxc6 bxc6 15. exf6 Qxf6 16. Ne5 Qe6 17. O-O c5 18. f4 Bg6 19. Qa4 cxd4 20. cxd4 {½-½ Anton Guijarro,D (2669)-Svane,R (2633) CrunchLab Masters Div 3 W rapid 2024 (2.3)}) 14. Be2 {[%emt 0:08:18]} f6 {[%emt 0:09:03]} 15. exf6 {[%emt 0:00:11]} Qxf6 {[%emt 0:03:18]} 16. O-O {[%emt 0:00:36]} Ne7 {[%emt 0:12:04][%cal Bc6e7,Be7f5,Bf5d6,Bd6e4][%mdl 32]} 17. Ne5 {[%emt 0:03:07]} Bxe2 {[%emt 0:00:12]} 18. Qxe2 {[%emt 0:00:09]} Qe6 {[%emt 0:03:56] Wards off Nd7} 19. a4 {[%emt 0:00:55]} c6 {[%emt 0:03:25]} 20. f4 {[%emt 0:02:54]} Nf5 {[%emt 0:04:05]} 21. Rfb1 {[%emt 0:00:46]} Nd6 {[%emt 0:06:21]} 22. a5 {[%emt 0:00:27]} Bc7 {[%emt 0:00:09]} 23. a6 {[%emt 0:01:18]} b5 {[%emt 0:03:02]} 24. Qd3 {[%emt 0:10:02]} Ne4 {[%emt 0:00:40]} 25. Rf1 {[%emt 0:00:15]} Rae8 {[%emt 0:03:49]} 26. Rf3 {[%emt 0:08:00]} Bb6 {[%emt 0:07:50]} (26... Rb8 $15) 27. Kh2 {[%emt 0:07:56]} (27. g4 $11) 27... Qc8 {[%emt 0:01:18]} 28. Qc2 {[%emt 0:04:32]} Bd8 {[%emt 0:04:30]} 29. Bc1 {[%emt 0:05:38]} Rf6 {[%emt 0:03:09]} 30. Qe2 {[%emt 0:01:42]} Bc7 {[%emt 0:01:56]} 31. Qe3 {[%emt 0:04:56] [#]} (31. Kg1 $11) 31... Bd6 {[%emt 0:02:07] Black is more active.} (31... c5 $1 $17 {and ...c4 should not be overlooked} 32. Ba3 c4 (32... Rxa6 33. dxc5 b4 34. Qd4 $19) (32... Qxa6 33. Qe1 $19)) 32. Bb2 {[%emt 0:01:34]} (32. Qd3 $15) 32... Ref8 {[%emt 0:02:56]} (32... c5 $17 {With the idea ...c4.} 33. dxc5 Qxc5 (33... Bxc5 34. Qd3 $15) 34. Qxc5 Nxc5 (34... Bxc5 35. Bc1 $11)) 33. Rff1 {[%emt 0:00:53] White does not recover from this.} (33. Ba3 $11 {and White stays safe.}) 33... c5 $36 {[%emt 0:01:58][%mdl 2048] Black has strong initiative.} 34. Ra5 $2 {[%emt 0:04:12]} (34. Rf3 $17) 34... Bc7 {[%emt 0:04:16][%csl LRa5,LRa6]} 35. Rxb5 {[%emt 0:06:52] and c4 would now be decisive} Qxa6 {[%emt 0:00:07]} (35... Rxa6 36. c4 (36. dxc5 $2 Bxe5 37. c4 Bxb2 $19) 36... Ra2 37. Bc1 $15 (37. dxc5 Rxb2 38. Rxb2 Bxe5 $11) (37. cxd5 Nd6 $17)) 36. Qe2 {[%emt 0:00:04]} Nd6 {[%emt 0:01:30]} (36... Rxf4 $2 37. Rxf4 Re8 (37... Rxf4 $2 38. Rb8+ Bxb8 39. Qxa6 $18) 38. Rb8 $18) 37. c4 {[%emt 0:00:48]} Nxb5 {[%emt 0:00:22]} (37... Rxf4 38. Rxf4 Rxf4 39. Rxc5 $16) 38. cxb5 {[%emt 0:00:05]} Qe6 {[%emt 0:00:58]} 39. Qe3 {[%emt 0:01:36]} c4 {[%emt 0:01:44]} 40. Bc3 {[%emt 0:00:16]} Rb8 {[%emt 0:01:16]} 41. Ra1 {[%emt 0:00:10]} Rxb5 {[%emt 0:01:29]} 42. Rxa7 {[%emt 0:00:08]} Bb8 {[%emt 0:00:28]} 43. Ra8 {[%emt 0:00:45]} Rf8 {[%emt 0:00:22]} 44. g4 {[%emt 0:02:23]} Rb3 {[%emt 0:00:36]} 45. Qd2 {[%emt 0:01:10]} Re8 {[%emt 0:02:08]} 46. Ra1 {[%emt 0:01:24]} Bc7 {[%emt 0:00:38]} 47. Re1 {[%emt 0:00:15]} Qd6 {[%emt 0:00:53]} 48. Qc2 {[%emt 0:01:07]} Rf8 {[%emt 0:00:29][%cal Od6a3]} 49. Qd2 {[%emt 0:00:37]} Qa3 {[%emt 0:01:44]} 50. Re3 {[%emt 0:00:24]} (50. Ra1 $142 Qd6 51. Rc1) 50... Kh8 {[%emt 0:01:55][%cal Oc7a5]} 51. Kg2 {[%emt 0:04:17] [#]} Ba5 $1 {[%emt 0:00:26][%mdl 512]} 52. Bxa5 {[%emt 0:00:36]} Rxe3 {[%emt 0:00:08]} 53. Bb4 {[%emt 0:00:05] [#]} Re2+ {[%emt 0:00:23]} 54. Qxe2 $19 {[%emt 0:00:04]} Qxb4 {[%emt 0:00:03][%mdl 4096] Endgame KQR-KQN} 55. Nd7 {[%emt 0:00:26]} Ra8 {[%emt 0:00:50]} (55... Rxf4 $2 {perishes.} 56. Qe8+ $18) 56. Nc5 {[%emt 0:01:02] Prevents Qb3} Qa3 {[%emt 0:00:32]} 57. Qe1 {[%emt 0:00:47]} Qb2+ {[%emt 0:00:21]} 58. Kg3 {[%emt 0:00:19]} Qxd4 {[%emt 0:00:27] ( -> ...Ra3+)} 59. Ne6 {[%emt 0:00:09]} Ra3+ {[%emt 0:00:26]} 60. Kh4 {[%emt 0:00:17]} Qe3 {[%emt 0:00:13]} (60... Qf6+ $142 61. g5 Qf5 62. Qg3 Rxg3 63. Kxg3 Qxe6 64. h4 c3 65. h5 c2 66. h6 c1=Q (66... c1=B {is a self mate.} 67. hxg7+ Kxg7 68. Kf3 Qh3+ 69. Kf2 Bxf4 70. g6 Qg3+ 71. Kf1 Be3 72. Ke2 Qf2+ 73. Kd3 Qd2#) (66... c1=R 67. hxg7+ Kxg7 68. Kf3 Qh3+ 69. Ke2 Rc2+ 70. Kd1 Qd3+ 71. Ke1 Qe2#) 67. hxg7+ Kxg7 68. f5 Qxg5+ 69. Kf2 Qee3+ 70. Kf1 Qgg1#) 61. Qb4 {[%emt 0:00:36]} Qxh3+ {[%emt 0:00:08] Black mates.} 62. Kg5 {[%emt 0:00:05]} Qh6+ {[%emt 0:00:02]} 63. Kf5 {[%emt 0:00:07]} Qf6# {[%emt 0:00:02] Weighted Error Value: White=1.01/Black=0.43  Mistake:       	White=6     	Black=3      Inaccurate:     	White=6     	Black=4      OK:         	White=12    	Black=23     Best:        	---       	Black=1} 0-1

[Event "SixDays Budapest March IM B 2025"]
[Site "Budapest"]
[Date "2025.03.25"]
[Round "2.2"]
[White "Pavan Karthikeya Varma Gunturi"]
[Black "Horvath, David"]
[Result "1/2-1/2"]
[Annotator "NA RC"]
[ECO "C11"]
[WhiteElo "2015"]
[BlackElo "2279"]
[PlyCount "253"]
[EventDate "2025.03.23"]
[EventCountry "HUN"]
[SourceTitle "playchess.com"]
[Source "ChessBase"]
[SourceQuality "1"]
[TimeControl "5400+30"]

1. e4 {[%emt 0:00:02]} e6 {[%emt 0:00:10]} 2. d4 {[%emt 0:00:03]} d5 {[%emt 0:00:05]} 3. Nc3 {[%emt 0:00:07]} Nf6 {[%emt 0:00:09]} 4. Bg5 {[%emt 0:00:06]} dxe4 {[%emt 0:01:02]} 5. Nxe4 {[%emt 0:00:07]} Nbd7 {[%emt 0:01:23]} 6. Nf3 {[%emt 0:04:12]} h6 {[%emt 0:05:59]} 7. Nxf6+ {[%emt 0:01:02]} Nxf6 {[%emt 0:00:05]} 8. Bh4 {[%emt 0:01:36]} c5 {[%emt 0:13:38]} 9. Bb5+ {[%emt 0:03:20]} Bd7 {[%emt 0:00:17]} 10. Bxd7+ {[%emt 0:01:04]} Qxd7 {[%emt 0:00:03]} 11. O-O {[%emt 0:02:26]} cxd4 {[%emt 0:07:37]} 12. Bxf6 {[%emt 0:00:41]} gxf6 {[%emt 0:00:06]} 13. Qxd4 {[%emt 0:00:06]} Qxd4 {[%emt 0:00:27]} 14. Nxd4 {[%emt 0:00:05]} O-O-O {[%emt 0:08:11]} 15. Rad1 {[%emt 0:01:31]} Bc5 {[%emt 0:00:12]} 16. Nb3 {[%emt 0:02:15]} Bb6 {[%emt 0:02:12]} 17. Rfe1 {[%emt 0:02:51]} Rhg8 {[%emt 0:05:02]} 18. Kf1 {[%emt 0:03:37]} Rg4 {[%emt 0:02:47]} 19. Rxd8+ {[%emt 0:01:10]} Kxd8 {[%emt 0:05:23]} 20. f3 {[%emt 0:01:52]} Rh4 {[%emt 0:01:32]} 21. h3 {[%emt 0:02:40]} Ra4 {[%emt 0:00:05]} 22. a3 {[%emt 0:00:59]} Rc4 {[%emt 0:00:10]} 23. c3 {[%emt 0:00:33]} f5 {[%emt 0:00:09]} 24. Nc1 {[%emt 0:02:56]} Ke7 {[%emt 0:07:42]} 25. Nd3 {[%emt 0:02:41]} h5 {[%emt 0:07:50]} 26. Rd1 {[%emt 0:01:02]} f6 {[%emt 0:04:33]} 27. Rc1 {[%emt 0:05:50]} e5 {[%emt 0:09:07]} 28. b3 {[%emt 0:00:53]} Rc8 {[%emt 0:00:19]} 29. c4 {[%emt 0:01:28]} Bd4 {[%emt 0:00:05]} 30. Rc2 {[%emt 0:01:51]} Ke6 {[%emt 0:02:45]} 31. Nb4 {[%emt 0:03:12]} a5 {[%emt 0:05:56]} 32. Nd5 {[%emt 0:01:04]} a4 {[%emt 0:01:12]} 33. bxa4 {[%emt 0:01:13]} Rc5 {[%emt 0:00:34]} 34. Rc1 {[%emt 0:06:33]} Ra5 {[%emt 0:00:50]} 35. Rb1 {[%emt 0:07:49]} Rxa4 {[%emt 0:00:20]} 36. Rxb7 {[%emt 0:00:16]} Rxc4 {[%emt 0:02:36]} 37. Nc7+ {[%emt 0:00:56]} Kd7 {[%emt 0:00:51]} 38. Na6+ {[%emt 0:01:20]} Kd6 {[%emt 0:00:51]} 39. Nb4 {[%emt 0:03:10]} Rc3 {[%emt 0:02:57]} 40. Rh7 {[%emt 0:03:12]} Bc5 {[%emt 0:01:49]} 41. Rh6 {[%emt 0:01:14]} Bxb4 {[%emt 0:02:51]} 42. axb4 {[%emt 0:00:16]} Ke6 {[%emt 0:00:10]} 43. Rxh5 {[%emt 0:00:29]} Rb3 {[%emt 0:00:22]} 44. Rh8 {[%emt 0:07:27]} Rxb4 {[%emt 0:00:16]} 45. Re8+ {[%emt 0:01:41]} Kf7 {[%emt 0:00:14]} 46. Ra8 Rb1+ {[%emt 0:00:15]} 47. Kf2 {[%emt 0:01:17]} Rb2+ {[%emt 0:00:07]} 48. Kf1 {[%emt 0:00:23]} f4 {[%emt 0:00:24]} 49. Ra6 {[%emt 0:01:20]} Rb1+ {[%emt 0:00:19]} 50. Kf2 {[%emt 0:00:09]} Rb2+ {[%emt 0:00:05]} 51. Kf1 {[%emt 0:00:03]} Rc2 {[%emt 0:00:18]} 52. Ra7+ {[%emt 0:01:50]} Kg6 {[%emt 0:01:11]} 53. Re7 {[%emt 0:02:05]} Ra2 {[%emt 0:00:18]} 54. Kg1 {[%emt 0:01:08]} Kg5 {[%emt 0:00:49]} 55. Rg7+ {[%emt 0:01:13]} Kh6 {[%emt 0:00:34]} 56. Rf7 {[%emt 0:03:23]} Kg6 {[%emt 0:00:24]} 57. Re7 {[%emt 0:00:03]} Ra5 {[%emt 0:00:22]} 58. Re6 {[%emt 0:02:05]} Ra1+ {[%emt 0:01:00]} 59. Kf2 {[%emt 0:00:06]} Ra2+ {[%emt 0:00:06]} 60. Kf1 {[%emt 0:00:28]} Kg5 {[%emt 0:00:14]} 61. Re8 {[%emt 0:01:04]} Kh4 {[%emt 0:01:03]} 62. Kg1 {[%emt 0:01:05]} Ra1+ {[%emt 0:01:15]} 63. Kf2 {[%emt 0:00:21]} Ra2+ {[%emt 0:00:04]} 64. Kg1 {[%emt 0:00:04]} f5 {[%emt 0:00:41]} 65. Rh8+ {[%emt 0:01:28]} Kg5 {[%emt 0:00:25]} 66. Rg8+ {[%emt 0:03:01]} Kh4 {[%emt 0:01:05]} 67. Rh8+ {[%emt 0:00:03]} Kg5 {[%emt 0:00:03]} 68. Rg8+ {[%emt 0:00:04]} Kf6 {[%emt 0:00:09]} 69. Rf8+ {[%emt 0:00:46]} Kg6 {[%emt 0:00:18]} 70. Kf1 {[%emt 0:01:41]} Kg5 {[%emt 0:01:24]} 71. Rg8+ {[%emt 0:00:54]} Kh4 {[%emt 0:00:08]} 72. Kg1 {[%emt 0:03:45]} Rb2 {[%emt 0:00:35]} 73. Rh8+ {[%emt 0:00:38]} Kg5 {[%emt 0:00:27]} 74. Rg8+ {[%emt 0:00:15]} Kf6 {[%emt 0:00:07]} 75. Rf8+ {[%emt 0:00:06]} Kg6 {[%emt 0:00:41]} 76. Kf1 {[%emt 0:00:09]} Rb7 {[%emt 0:01:00]} 77. Kf2 {[%emt 0:01:23]} Rf7 {[%emt 0:00:44]} 78. Rxf7 {[%emt 0:02:49]} Kxf7 {[%emt 0:00:01]} 79. g3 {[%emt 0:01:35]} fxg3+ {[%emt 0:00:06]} 80. Kxg3 {[%emt 0:00:06]} Kg6 {[%emt 0:00:04]} 81. Kg2 {[%emt 0:00:27]} Kg5 {[%emt 0:00:43]} 82. Kg3 {[%emt 0:00:26]} Kh5 {[%emt 0:00:14]} 83. h4 {[%emt 0:00:24]} Kh6 {[%emt 0:00:16]} 84. Kh2 {[%emt 0:00:19]} Kg6 {[%emt 0:00:15]} 85. Kg2 {[%emt 0:00:06]} Kh7 {[%emt 0:00:26]} 86. Kh1 {[%emt 0:00:15]} Kh6 {[%emt 0:00:05]} 87. Kh2 {[%emt 0:00:08]} Kh5 {[%emt 0:00:11]} 88. Kh3 {[%emt 0:00:13]} f4 {[%emt 0:00:05]} 89. Kg2 {[%emt 0:00:09]} Kxh4 {[%emt 0:00:06]} 90. Kh2 {[%emt 0:00:03]} Kg5 {[%emt 0:00:06]} 91. Kg1 {[%emt 0:00:09]} Kf5 {[%emt 0:00:26]} 92. Kf1 {[%emt 0:00:05]} Kf6 {[%emt 0:00:06]} 93. Kf2 {[%emt 0:00:05]} Ke7 {[%emt 0:00:06]} 94. Ke1 {[%emt 0:00:14]} Kd6 {[%emt 0:00:27]} 95. Kd2 {[%emt 0:00:06]} Kc5 {[%emt 0:00:50]} 96. Kc3 {[%emt 0:00:24]} Kc6 {[%emt 0:00:04]} 97. Kc2 {[%emt 0:00:11]} Kb5 {[%emt 0:00:45]} 98. Kd3 {[%emt 0:00:20]} Kc6 {[%emt 0:00:17]} 99. Kc2 {[%emt 0:00:06]} Kb6 {[%emt 0:03:17]} 100. Kd3 {[%emt 0:01:21]} Kc7 {[%emt 0:00:10]} 101. Kc3 {[%emt 0:00:08]} Kd6 {[%emt 0:00:36]} 102. Kd2 {[%emt 0:00:12]} Kd5 {[%emt 0:00:08]} 103. Kd3 {[%emt 0:00:07]} Ke6 {[%emt 0:00:10]} 104. Ke2 {[%emt 0:00:38]} Ke7 {[%emt 0:00:51]} 105. Ke1 {[%emt 0:00:20]} Kd7 {[%emt 0:00:16]} 106. Kd1 {[%emt 0:00:11]} Kc7 {[%emt 0:00:05]} 107. Kc1 {[%emt 0:00:52]} Kb6 {[%emt 0:01:33]} 108. Kd2 {[%emt 0:00:15]} Kb7 {[%emt 0:00:42]} 109. Kd3 {[%emt 0:00:13]} Kc6 {[%emt 0:00:09]} 110. Kc2 {[%emt 0:00:20]} Kc5 {[%emt 0:02:07]} 111. Kc3 {[%emt 0:00:11]} Kb5 {[%emt 0:00:10]} 112. Kd3 {[%emt 0:00:10]} Kc6 {[%emt 0:00:06]} 113. Kc2 {[%emt 0:00:09]} Kd5 {[%emt 0:00:34]} 114. Kd3 {[%emt 0:00:19]} Ke6 {[%emt 0:00:06]} 115. Ke2 {[%emt 0:00:23]} Kf5 {[%emt 0:00:05]} 116. Kf1 {[%emt 0:00:18]} Kf6 {[%emt 0:00:57]} 117. Kf2 {[%emt 0:00:14]} Kf7 {[%emt 0:00:09]} 118. Kf1 {[%emt 0:00:18]} Ke7 {[%emt 0:00:09]} 119. Ke1 {[%emt 0:00:20]} Kd7 {[%emt 0:00:07]} 120. Kd1 {[%emt 0:00:17]} Kc7 {[%emt 0:00:06]} 121. Kc1 {[%emt 0:00:41]} Kb7 {[%emt 0:00:04]} 122. Kd1 {[%emt 0:00:07]} Ka6 {[%emt 0:02:23]} 123. Ke2 {[%emt 0:00:45]} Kb6 {[%emt 0:00:35]} 124. Kd2 {[%emt 0:00:29]} Kc5 {[%emt 0:00:54]} 125. Kc3 {[%emt 0:01:33]} Kb5 {[%emt 0:00:06]} 126. Kd3 {[%emt 0:00:27]} Kc6 {[%emt 0:00:04]} 127. Kc2 {[%emt 0:00:20]} 1/2-1/2

[Event "SixDays Budapest March IM B 2025"]
[Site "Budapest"]
[Date "2025.03.25"]
[Round "2.3"]
[White "Katsanis, Vasileios Dim"]
[Black "Vuelban, Virgilio"]
[Result "1-0"]
[Annotator "TA"]
[ECO "A50"]
[WhiteElo "2253"]
[BlackElo "2244"]
[PlyCount "67"]
[EventDate "2025.03.23"]
[EventCountry "HUN"]
[SourceTitle "playchess.com"]
[Source "ChessBase"]
[SourceQuality "1"]
[TimeControl "5400+30"]

{[%evp 19,67,19,20,15,20,28,47,45,116,123,111,28,30,12,14,12,33,35,65,0,4,-22,-25,-38,-25,-43,-35,-55,-59,-72,-72,-60,-27,-31,-27,-27,-27,-27,-27,-63,-61,-177,-160,-545,-506,-467,-358,-398,179,200]} 1. d4 {[%emt 0:00:04]} Nf6 {[%emt 0:08:35]} 2. c4 {[%emt 0:00:04]} Nc6 {[%emt 0:01:10]} 3. Nf3 {[%emt 0:01:23]} e6 {[%emt 0:02:30]} 4. Nc3 {[%emt 0:00:39]} Bb4 {[%emt 0:00:26]} 5. Qc2 {[%emt 0:00:15]} O-O {[%emt 0:04:24]} 6. a3 {[%emt 0:00:44]} Bxc3+ {[%emt 0:00:13]} 7. Qxc3 {[%emt 0:00:05]} a5 {[%emt 0:00:08]} 8. b3 {[%emt 0:00:31]} d6 {[%emt 0:00:29]} 9. Bb2 {[%emt 0:03:42]} Qe7 {[%emt 0:03:25]} 10. e3 {[%emt 0:03:27]} Re8 {[%emt 0:00:40]} 11. Nd2 $146 {[%emt 0:07:22] E33: Nimzo-Indian: Classical: 4...Nc6.} (11. Be2 e5 12. dxe5 dxe5 13. O-O Bg4 14. h3 Bh5 15. Rfe1 Ne4 16. Qc2 Bg6 17. Bd3 Nc5 18. Bxg6 hxg6 {0-1 Molina,R (2434)-Sadhwani,R (2603) Titled Tuesday intern op 07th Sept blitz 2021 (9)}) 11... e5 {[%emt 0:10:32]} 12. d5 {[%emt 0:00:16]} Nd4 {[%emt 0:00:08][%cal Ob7b5]} 13. Bd3 $1 {[%emt 0:04:46] White is slightly better.} c5 {[%emt 0:09:55]} 14. O-O $1 $16 {[%emt 0:10:44]} (14. exd4 $2 exd4+ 15. Kd1 dxc3 $19) 14... Nf5 {[%emt 0:01:04]} 15. Bxf5 {[%emt 0:17:23]} (15. a4 $16) 15... Bxf5 $11 {[%emt 0:00:25]} 16. b4 {[%emt 0:08:24]} b6 {[%emt 0:03:52]} 17. f3 {[%emt 0:01:19]} a4 {[%emt 0:00:44]} 18. b5 {[%emt 0:01:39]} Bd7 {[%emt 0:05:04]} 19. g4 {[%emt 0:07:43]} (19. Rae1 $14) 19... h6 {[%emt 0:00:35]} 20. e4 {[%emt 0:00:50]} Nh7 {[%emt 0:00:18][%cal Bf6h7,Bh7f8,Bf8g6,Bg6f4][%mdl 32]} 21. Qe3 {[%emt 0:04:06]} Nf8 {[%emt 0:06:29]} 22. Nb1 {[%emt 0:06:54]} Ng6 {[%emt 0:00:54][%cal Oh6h5]} 23. Nc3 {[%emt 0:00:14] [#]} h5 $1 {[%emt 0:00:43]} 24. gxh5 {[%emt 0:01:07][%csl Oh2,Oh5] White has weak pawns} (24. Bc1 hxg4) 24... Nf4 {[%emt 0:02:02]} 25. Kh1 {[%emt 0:00:06]} Qh4 {[%emt 0:02:06]} 26. Ne2 {[%emt 0:00:53]} Nxe2 {[%emt 0:00:26]} 27. Qxe2 {[%emt 0:00:02]} Qxh5 {[%emt 0:00:16]} 28. Qe3 {[%emt 0:01:33]} g5 {[%emt 0:02:22]} 29. Rg1 {[%emt 0:00:34]} f6 {[%emt 0:00:07]} 30. f4 {[%emt 0:02:48]} ({White should play} 30. Rg3 $15) 30... Bg4 $19 {[%emt 0:00:40]} 31. Raf1 {[%emt 0:01:15] Prevents Bf3+} (31. Rxg4 $17 Qxg4 32. fxe5 dxe5 (32... fxe5 33. Rg1 $18) 33. Rg1) 31... exf4 {[%emt 0:07:22]} 32. Qc3 {[%emt 0:03:53][%cal Og1g4] Hoping for Rxg4!.} Rf8 {[%emt 0:00:25] and ...Rae8 would now be decisive} ({Worse is} 32... Rxe4 33. Rxg4 Qxg4 34. Qxf6 $14) 33. Rf2 {[%emt 0:05:23]} Be2 $4 {[%emt 0:00:32][%mdl 8192] [#]} (33... Rae8 $19 {and all is fine.} 34. Qd3 Kg7 (34... f5 $2 35. e5 $19)) 34. Rxe2 $1 {[%emt 0:01:06] Weighted Error Value: White=0.49/Black=0.46  Loses game:     	White=1     	---        Missed win:     	---       	Black=1      Mistake:       	White=3     	Black=1      Inaccurate:     	White=2     	Black=2      OK:         	White=4     	Black=8      Best:        	---       	Black=4      Strong:       	White=2     	---        Brilliant:      	White=1     	---} 1-0

[Event "SixDays Budapest March IM B 2025"]
[Site "Budapest"]
[Date "2025.03.25"]
[Round "2.4"]
[White "Savanovic, Aleksandar"]
[Black "Shah, Vishwa"]
[Result "1/2-1/2"]
[Annotator "TA"]
[ECO "C70"]
[WhiteElo "2355"]
[BlackElo "2172"]
[PlyCount "63"]
[EventDate "2025.03.23"]
[EventCountry "HUN"]
[SourceTitle "playchess.com"]
[Source "ChessBase"]
[SourceQuality "1"]
[TimeControl "5400+30"]

{[%evp 10,63,86,59,56,55,55,62,54,54,65,59,67,47,55,42,58,21,31,29,23,23,32,-4,0,-4,0,0,0,0,-2,-4,0,-13,0,-4,0,-15,-19,-14,0,-12,-13,-14,-4,-6,-11,-8,-6,-8,-7,-7,0,0,0,-8]} 1. e4 {[%emt 0:00:02]} e5 {[%emt 0:00:06]} 2. Nf3 {[%emt 0:00:24]} Nc6 {[%emt 0:00:07]} 3. Bb5 {[%emt 0:00:10]} a6 {[%emt 0:00:05]} 4. Ba4 {[%emt 0:00:04]} Bc5 {[%emt 0:00:05]} 5. O-O {[%emt 0:01:48]} Nge7 {[%emt 0:00:10]} 6. c3 {[%emt 0:01:26]} Ng6 {[%emt 0:00:27] C64: Ruy Lopez: Classical Defence (3...Bc5) except 4 0-0 Nf6.} 7. d4 {[%emt 0:00:51]} Ba7 {[%emt 0:00:16]} 8. Bg5 {[%emt 0:00:29]} f6 {[%emt 0:00:13] White is slightly better.} 9. Be3 {[%emt 0:00:08]} O-O {[%emt 0:00:08]} 10. Re1 {[%emt 0:01:50] White is more active.} d6 {[%emt 0:00:14][%cal Bd7d6,Bd6d5][%mdl 32]} 11. h3 {[%emt 0:00:07]} Kh8 {[%emt 0:00:06]} 12. Nbd2 {[%emt 0:04:17][%cal Bb1d2,Bd2f1,Bf1g3,Bg3e4,Be4c3,Bc3a4,Ba4c5][%mdl 32]} a5 {[%emt 0:00:35]} 13. Nf1 {[%emt 0:03:22]} exd4 {[%emt 0:00:41]} 14. cxd4 {[%emt 0:08:29]} d5 {[%emt 0:00:40]} 15. Ng3 $146 {[%emt 0:04:52]} ({Predecessor:} 15. Bxc6 bxc6 16. e5 fxe5 17. dxe5 c5 18. Ng5 Nxe5 19. Bf4 Qf6 20. Qxd5 Qxf4 21. Rxe5 {0-1 Dumanuly,S (2218)-Shah,V (2127) Pozarevac Rudar IM2 12 2024 (4)}) 15... Be6 {[%emt 0:00:43]} 16. Bxc6 {[%emt 0:08:57]} bxc6 {[%emt 0:00:06] The position is equal.} 17. b3 {[%emt 0:00:47]} dxe4 {[%emt 0:04:02]} 18. Nxe4 {[%emt 0:00:08]} Bd5 {[%emt 0:10:35]} 19. Nc3 {[%emt 0:00:44]} Bf7 {[%emt 0:09:39]} 20. Rc1 {[%emt 0:00:24][%cal Od4d5]} Qd7 {[%emt 0:00:15]} 21. Na4 {[%emt 0:04:31]} Rfe8 {[%emt 0:09:10]} 22. Nc5 {[%emt 0:08:14]} Qd5 {[%emt 0:01:34]} (22... Bxc5 {simplifies} 23. Rxc5 a4 24. bxa4 Bxa2 25. a5 Bd5) 23. Nd2 {[%emt 0:01:48]} Nh4 {[%emt 0:09:42][%csl Gh4][%cal Rd5g2] [#]} 24. Qg4 {[%emt 0:00:09]} Nf5 {[%emt 0:00:04]} 25. Qf4 {[%emt 0:13:54]} Bb6 {[%emt 0:04:19]} 26. Nde4 {[%emt 0:04:47]} g5 {[%emt 0:01:25]} (26... Nxd4 $2 {too greedy.} 27. Nxf6 Qe5 28. Nxe8 Qxf4 29. Bxf4 $18) 27. Qf3 {[%emt 0:01:14]} Bxc5 {[%emt 0:06:06]} 28. Rxc5 {[%emt 0:00:09]} Qxe4 {[%emt 0:00:04]} 29. Qxe4 {[%emt 0:04:40]} Rxe4 {[%emt 0:00:02]} 30. Rxf5 {[%emt 0:00:08]} Kg7 {[%emt 0:00:17]} 31. Rc5 {[%emt 0:01:30]} Bd5 {[%emt 0:01:29]} 32. f3 {Weighted Error Value: White=0.08 (flawless) /Black=0.02 (flawless)   Inaccurate:     	White=2     	---        OK:         	White=12    	Black=14     Best:        	---       	Black=3} 1/2-1/2